bitfinex-derivatives/quotes_ETHF0:USTF0_20220103
["timestamp","ask_amount","ask_price","bid_price","bid_amount"]
[1641203071716,11.438157,3802.3,3802.0,1.1911438]
[1641203071914,0.229991,3802.2,3802.0,1.1911438]
[1641203072114,11.438157,3802.3,3802.0,1.1911438]
[1641203072715,11.438157,3802.3,3801.9,1.1911438]
[1641203074721,11.31,3802.3,3801.9,1.1911438]
[1641203075022,12.48942995,3802.5,3801.9,1.1911438]
[1641203075321,11.31,3802.5,3802.0,1.1911438]
[1641203075520,11.438157,3802.5,3802.0,1.1911438]
[1641203075921,0.128157,3802.5,3802.0,1.1911438]
[1641203076322,14.49421995,3802.6,3802.0,1.1911438]
[1641203076522,14.49421995,3802.6,3802.1,0.122356]
[1641203076723,14.49421995,3802.6,3802.0,1.7259438]
[1641203077227,13.31479,3802.6,3802.2,1.1911438]
[1641203077423,2.00479,3802.6,3802.2,1.1911438]
[1641203078426,13.31479,3802.6,3802.2,1.1911438]
[1641203079126,3.18421995,3802.6,3802.2,1.1911438]
[1641203079626,14.49421995,3802.6,3802.2,1.1911438]
[1641203081330,3.18421995,3802.6,3802.2,1.1911438]
[1641203082433,14.49421995,3802.6,3802.2,1.1911438]
[1641203082631,14.49421995,3802.6,3802.5,0.89380467]
[1641203082833,14.72421095,3802.6,3802.5,0.89380467]
[1641203083833,13.544781,3802.6,3802.2,1.1911438]
[1641203084635,13.544781,3802.6,3802.0,1.49108639]
[1641203084834,15.044781,3802.6,3802.0,1.49108639]
[1641203085835,2.00479,3802.1,3802.0,1.49108639]
[1641203086035,13.99619,3802.1,3802.0,1.19180749]
[1641203086436,14.226181,3802.1,3802.0,1.19180749]
[1641203086635,13.99619,3802.1,3802.0,1.19180749]
[1641203087336,2.916181,3802.1,3801.8,0.128157]
[1641203087538,2.00479,3802.1,3801.8,0.128157]
[1641203089537,2.00479,3802.1,3801.8,1.61924339]
[1641203089736,0.229991,3802.0,3801.8,1.61924339]
[1641203089935,2.00479,3802.1,3801.8,1.61924339]
[1641203090337,2.00479,3802.1,3801.8,0.128157]
[1641203091439,0.229991,3802.0,3801.8,0.128157]
[1641203091639,0.229991,3802.0,3801.7,1.49108639]
[1641203092241,0.229991,3802.0,3801.6,1.49108639]
[1641203092440,2.132947,3802.1,3801.6,1.49108639]
[1641203092643,2.00479,3802.1,3801.6,1.49108639]
[1641203094343,2.132947,3802.1,3801.7,2.00974981]
[1641203094943,2.00479,3802.1,3801.7,2.00974981]
[1641203095347,2.00479,3802.1,3801.7,1.49108639]
[1641203095743,2.00479,3802.1,3801.9,1.19188929]
[1641203096547,2.00479,3802.1,3801.5,0.128157]
[1641203096548,2.00479,3802.1,3802.0,1.19188929]
[1641203096746,2.234781,3802.1,3802.0,1.19188929]
[1641203097145,2.00479,3802.1,3802.0,1.19188929]
[1641203097547,2.00479,3802.1,3801.9,1.19188929]
[1641203098648,0.88667997,3802.0,3801.9,1.19188929]
[1641203101657,0.88667997,3802.0,3801.9,1.71094229]
[1641203102057,2.00479,3802.1,3801.9,0.519053]
[1641203102657,2.00479,3802.1,3801.8,0.519053]
[1641203102960,2.00479,3802.1,3802.0,0.5592051]
[1641203103961,1.18225118,3802.5,3802.0,0.6815611]
[1641203104160,3.77267597,3803.0,3802.0,2.45255681]
[1641203104359,3.77267597,3803.0,3802.1,0.51883658]
[1641203105463,0.47467372,3802.9,3802.1,2.56912807]
[1641203105661,0.128157,3802.8,3802.1,2.56912807]
[1641203106060,0.128157,3802.8,3802.1,4.57391807]
[1641203106260,0.128157,3802.8,3802.1,4.05508149]
[1641203106460,0.128157,3802.8,3802.2,0.51966235]
[1641203106660,0.47467372,3802.7,3802.2,1.07886745]
[1641203107159,0.47467372,3802.7,3802.2,0.5592051]
[1641203107360,0.47467372,3802.7,3802.3,0.5592051]
[1641203108362,0.47467372,3802.9,3802.2,0.5592051]
[1641203109064,0.60283072,3802.9,3802.2,0.5592051]
[1641203109663,0.60283072,3802.9,3802.3,0.67764098]
[1641203110064,0.47467372,3802.8,3802.3,0.67764098]
[1641203111363,0.47467372,3802.8,3802.4,0.5592051]
[1641203113868,0.47467372,3802.8,3802.3,0.5592051]
[1641203114267,1.29837372,3802.8,3802.3,0.5592051]
[1641203114468,2.4833744,3802.8,3802.4,1.19140253]
[1641203114669,11.31,3802.7,3802.4,1.19140253]
[1641203114869,0.229991,3802.6,3802.4,1.19140253]
[1641203116070,1.41499168,3802.6,3802.2,0.5592051]
[1641203117172,0.47467372,3802.5,3802.2,0.5592051]
[1641203117974,0.229991,3802.4,3802.2,0.5592051]
[1641203120277,0.47452448,3802.3,3802.2,0.5592051]
[1641203123577,0.47452448,3802.3,3801.9,1.19140253]
[1641203123779,0.47452448,3802.3,3801.0,2.23655487]
[1641203123979,1.5,3802.0,3801.0,2.23655487]
[1641203124184,11.31,3801.7,3801.0,2.23655487]
[1641203124385,0.128157,3801.6,3801.4,1.48916612]
[1641203124586,0.229991,3801.5,3801.4,1.48916612]
[1641203125590,1.11788704,3801.5,3800.9,2.00479]
[1641203125989,1.11788704,3801.5,3801.0,0.63735068]
[1641203127389,1.11788704,3801.5,3800.9,2.00479]
[1641203127590,0.88789604,3801.3,3800.9,2.00479]
[1641203128692,0.128157,3801.6,3801.1,0.89191232]
[1641203130292,29.68528488,3801.6,3801.1,0.89191232]
[1641203130592,1.5,3801.2,3800.2,0.74559079]
[1641203130795,11.432356,3801.1,3800.2,0.74559079]
[1641203130992,11.432356,3801.1,3799.7,18.05183001]
[1641203131194,11.432356,3801.1,3799.7,15.0757]
[1641203131396,11.432356,3801.1,3800.3,0.63762804]
[1641203131796,11.432356,3801.1,3799.8,0.63762804]
[1641203131995,11.432356,3801.1,3799.8,1.38345819]
[1641203132196,2.00479,3800.2,3799.8,1.38345819]
[1641203132396,0.128157,3800.1,3799.8,0.74583015]
[1641203133299,0.229991,3800.0,3799.9,0.6373644]
[1641203133496,0.128157,3800.1,3799.9,0.6373644]
[1641203133898,0.128157,3800.1,3799.9,2.1241027]
[1641203134598,0.128157,3800.1,3800.0,0.6373644]
[1641203134799,2.00479,3800.2,3800.0,0.6373644]
[1641203135399,2.00479,3800.6,3800.1,0.122356]
[1641203135597,2.00479,3800.6,3800.1,2.442656]
[1641203135998,2.00479,3800.6,3800.1,0.942656]
[1641203136199,2.00479,3800.6,3800.4,1.4867383]
[1641203137099,2.00479,3800.6,3800.5,0.51042904]
[1641203137698,2.00479,3800.6,3800.4,0.51042904]
[1641203138098,2.00479,3800.6,3800.5,0.51042904]
[1641203138598,2.00479,3800.6,3800.4,0.51042904]
[1641203138798,2.00479,3800.6,3800.5,0.51042904]
[1641203139401,2.00479,3800.6,3800.4,0.51042904]
[1641203139598,2.00479,3800.6,3800.5,0.51042904]
[1641203140200,2.00479,3800.6,3800.4,0.51042904]
[1641203140399,2.00479,3800.6,3800.5,1.69971836]
[1641203140700,2.00479,3800.6,3800.5,1.18928932]
[1641203141900,2.234781,3800.6,3800.5,1.18928932]
[1641203142301,2.234781,3800.6,3800.3,1.4867383]
[1641203142501,2.00479,3800.6,3800.3,1.4867383]
[1641203143102,2.00479,3800.6,3800.5,1.18928959]
[1641203143301,2.234781,3800.6,3800.5,1.18928959]
[1641203144101,2.00479,3800.6,3800.5,1.18928959]
[1641203144503,2.00479,3800.6,3800.2,1.4867383]
[1641203144704,2.00479,3800.6,3800.3,1.4867383]
[1641203144903,0.229991,3800.5,3800.3,1.4867383]
[1641203145303,2.00479,3800.6,3800.3,1.4867383]
[1641203145504,2.00479,3800.6,3800.2,1.4867383]
[1641203146304,2.00479,3800.6,3800.5,1.18929447]
[1641203146505,2.234781,3800.6,3800.5,1.18929447]
[1641203146906,2.234781,3800.6,3800.4,1.4867383]
[1641203146907,2.00479,3800.6,3800.4,1.4867383]
[1641203147405,2.234781,3800.6,3800.4,1.4867383]
[1641203148105,2.00479,3800.6,3800.5,1.18928337]
[1641203148505,2.234781,3800.6,3800.5,1.18928337]
[1641203149307,2.234781,3800.6,3800.4,1.18928337]
[1641203151009,13.544781,3800.6,3800.4,1.18928337]
[1641203151509,13.544781,3800.6,3800.4,0.89102995]
[1641203151707,2.234781,3800.6,3800.4,0.89102995]
[1641203152309,11.31,3800.5,3800.4,0.89102995]
[1641203153311,11.31,3800.5,3800.3,0.89102995]
[1641203153510,0.229991,3800.4,3800.3,0.89102995]
[1641203153712,2.00479,3800.6,3800.3,0.89102995]
[1641203154210,0.128157,3800.8,3800.3,0.89102995]
[1641203155612,0.128157,3800.8,3800.4,0.89102995]
[1641203157113,0.128157,3800.8,3800.5,0.89102995]
[1641203157313,0.229991,3800.7,3800.5,0.89102995]
[1641203157511,0.128157,3800.8,3800.5,0.89102995]
[1641203158715,0.229991,3800.7,3800.5,0.89102995]
[1641203160118,0.128157,3800.8,3800.5,0.89102995]
[1641203160418,0.128157,3800.8,3800.3,0.55934479]
[1641203160419,0.128157,3800.8,3800.4,0.89102995]
[1641203166425,0.128157,3800.8,3800.5,0.89102995]
[1641203168027,0.128157,3800.8,3800.4,1.48112995]
[1641203171429,0.128157,3800.8,3800.5,1.45037644]
[1641203172329,0.229991,3800.7,3800.5,1.45037644]
[1641203172530,0.128157,3800.8,3800.5,1.45037644]
[1641203172940,0.128157,3800.8,3800.6,0.89102995]
[1641203173843,0.128157,3800.8,3800.5,1.45037644]
[1641203174042,0.229991,3800.7,3800.5,1.45037644]
[1641203174240,0.128157,3800.8,3800.5,1.45037644]
[1641203174443,0.128157,3800.8,3800.5,0.89102995]
[1641203174642,0.128157,3800.8,3800.4,1.48112995]
[1641203174841,2.00479,3801.0,3800.7,0.78932427]
[1641203175042,0.88683742,3801.5,3800.8,0.250513]
[1641203175241,0.88683742,3801.1,3800.8,0.250513]
[1641203175441,0.88683742,3801.1,3800.8,0.76097148]
[1641203176443,0.88683742,3801.7,3801.0,3.4915283]
[1641203176643,0.128157,3801.6,3801.0,3.4915283]
[1641203177044,0.88683742,3801.7,3801.2,1.5]
[1641203177242,0.88683742,3801.7,3801.4,1.5]
[1641203177444,0.88683742,3801.7,3801.2,3.08620799]
[1641203177644,1.47762756,3802.3,3801.6,1.5]
[1641203177844,2.21016265,3802.9,3802.2,1.5]
[1641203178046,1.48296443,3802.4,3802.2,0.755]
[1641203178446,1.48296443,3802.4,3802.3,4.00958]
[1641203178846,1.77329622,3802.7,3802.3,4.00958]
[1641203179045,1.77329622,3802.7,3802.3,5.32370779]
[1641203179648,2.51881629,3803.5,3802.3,5.32370779]
[1641203180447,2.51881629,3803.5,3802.7,2.00479]
[1641203180649,0.128157,3803.4,3802.7,2.00479]
[1641203183350,0.128157,3803.4,3802.7,2.132947]
[1641203184553,0.128157,3803.4,3802.7,2.00479]
[1641203185569,1.5,3803.3,3802.7,2.00479]
[1641203185755,1.5,3802.9,3802.3,2.00479]
[1641203185955,1.5,3802.6,3802.3,2.00479]
[1641203186155,0.358148,3802.5,3802.3,2.00479]
[1641203186355,0.7449,3802.5,3802.3,2.00479]
[1641203186955,0.229991,3802.4,3802.3,2.00479]
[1641203188258,0.128157,3802.4,3802.3,2.00479]
[1641203188960,0.358148,3802.4,3802.3,2.00479]
[1641203194571,0.128157,3802.4,3801.9,2.00479]
[1641203194869,0.128157,3802.4,3801.9,2.132947]
[1641203195269,0.128157,3802.4,3801.9,2.00479]
[1641203196570,2.00479,3802.8,3801.9,2.00479]
[1641203196772,0.128157,3802.7,3801.9,2.00479]
[1641203196971,0.128157,3802.7,3802.0,0.128157]
[1641203197171,0.128157,3802.7,3802.0,0.944357]
[1641203197372,2.00479,3802.8,3802.0,0.944357]
[1641203199175,0.128157,3802.7,3802.0,0.944357]
[1641203200676,0.128157,3802.7,3802.0,0.8162]
[1641203200878,0.128157,3802.7,3801.9,2.00479]
[1641203204080,11.438157,3802.7,3801.9,2.00479]
[1641203210283,0.128157,3802.7,3801.9,2.00479]
[1641203212184,0.128157,3802.7,3802.0,0.128157]
[1641203213388,0.128157,3802.7,3801.9,2.00479]
[1641203213786,0.88695865,3802.5,3802.2,0.88529361]
[1641203213986,0.229991,3802.4,3802.2,0.88529361]
[1641203215991,0.88695865,3802.6,3802.2,0.88529361]
[1641203216790,0.88695865,3802.5,3802.2,0.88529361]
[1641203217190,0.229991,3802.4,3802.2,0.88529361]
[1641203218395,0.229991,3802.4,3802.0,0.55911578]
[1641203218396,0.122356,3802.3,3802.0,0.55911578]
[1641203218596,2.00479,3802.1,3801.6,1.48160083]
[1641203218792,11.31,3802.0,3801.6,1.48160083]
[1641203219693,0.128157,3801.9,3801.1,5.032705]
[1641203219893,0.128157,3801.9,3801.1,2.79615013]
[1641203220694,2.00479,3801.6,3801.1,1.3145493]
[1641203223501,2.00479,3801.6,3801.2,0.128157]
[1641203224302,2.00479,3801.6,3801.1,1.3145493]
[1641203225601,2.00479,3801.6,3801.2,0.128157]
[1641203225801,2.00479,3801.6,3801.2,0.794857]
[1641203227005,2.00479,3801.6,3801.3,0.61766289]
[1641203228908,2.00479,3801.6,3801.4,0.122356]
[1641203229509,2.00479,3802.1,3801.4,0.122356]
[1641203229909,2.00479,3802.1,3801.5,1.18370088]
[1641203230307,2.00479,3802.1,3801.6,0.61766289]
[1641203230510,2.00479,3802.1,3801.6,1.80136377]
[1641203230909,2.00479,3802.1,3801.7,0.61766289]
[1641203231208,2.00479,3802.1,3801.8,1.3142746]
[1641203231610,2.00479,3802.1,3801.9,0.61766289]
[1641203232811,0.128157,3802.3,3801.9,0.61766289]
[1641203237615,0.128157,3802.3,3801.8,0.61766289]
[1641203238717,2.00479,3802.0,3801.8,0.61766289]
[1641203239017,2.00479,3802.0,3801.9,0.55913596]
[1641203239416,2.00479,3802.0,3801.9,1.17679885]
[1641203240718,2.234781,3802.0,3801.9,1.17679885]
[1641203241219,2.00479,3802.0,3801.9,1.17679885]
[1641203243023,2.234781,3802.0,3801.9,1.17679885]
[1641203243824,2.00479,3802.0,3801.9,1.17679885]
[1641203245125,2.00479,3802.0,3801.9,2.36049973]
[1641203245323,2.234781,3802.0,3801.9,2.36049973]
[1641203245524,2.00479,3802.0,3801.9,2.36049973]
[1641203246525,2.234781,3802.0,3801.9,2.36049973]
[1641203246726,2.00479,3802.0,3801.9,2.36049973]
[1641203246927,0.128157,3802.3,3801.9,2.36049973]
[1641203247326,2.00479,3802.1,3801.9,2.36049973]
[1641203247526,0.229991,3802.0,3801.9,2.36049973]
[1641203247727,0.229991,3802.0,3801.9,1.18370088]
[1641203247926,2.00479,3802.1,3801.9,1.18370088]
[1641203248427,0.229991,3802.0,3801.9,1.18370088]
[1641203248628,0.229991,3802.0,3801.8,1.18370088]
[1641203249629,0.229991,3802.0,3801.9,1.18370088]
[1641203250529,0.229991,3802.0,3801.7,1.18370088]
[1641203251028,0.229991,3802.0,3801.6,1.18370088]
[1641203253130,2.89688643,3802.1,3801.6,1.18370088]
[1641203253330,2.89688643,3802.1,3801.6,1.94750088]
[1641203254133,2.89688643,3802.1,3801.9,0.88619136]
[1641203254330,0.229991,3802.0,3801.9,0.88619136]
[1641203256035,1.12208743,3802.0,3801.9,0.88619136]
[1641203256633,1.12208743,3802.0,3801.7,1.18370088]
[1641203256836,0.229991,3802.0,3801.8,1.18370088]
[1641203257034,2.89688643,3802.1,3801.8,1.18370088]
[1641203257236,0.229991,3802.0,3801.8,1.18370088]
[1641203257937,2.89688643,3802.1,3801.7,1.18370088]
[1641203258838,2.89688643,3802.1,3802.0,0.88456721]
[1641203259639,2.00479,3802.1,3801.8,1.18370088]
[1641203260440,0.229991,3802.0,3801.8,1.18370088]
[1641203260639,2.00479,3802.1,3801.8,1.18370088]
[1641203261140,1e-08,3802.1,3801.9,1.5]
[1641203261353,1.18871505,3802.4,3802.0,0.122356]
[1641203261742,1.18871505,3802.4,3802.1,2.00479]
[1641203262346,0.128157,3802.6,3802.1,2.00479]
[1641203262948,0.128157,3802.6,3802.2,0.61860924]
[1641203263345,0.128157,3802.6,3802.2,2.35525585]
[1641203263745,0.128157,3802.6,3802.3,0.61860924]
[1641203263945,0.229991,3802.5,3802.3,0.61860924]
[1641203264147,0.128157,3802.6,3802.3,0.61860924]
[1641203264546,0.128157,3802.6,3802.3,1.17771265]
[1641203264948,0.128157,3802.6,3802.4,0.61860924]
[1641203265347,0.128157,3802.6,3802.4,0.55910341]
[1641203265946,0.229991,3802.5,3802.4,0.55910341]
[1641203266147,0.128157,3802.6,3802.2,0.55910341]
[1641203266346,12.49871505,3802.8,3802.4,0.61824858]
[1641203266746,12.49871505,3802.8,3802.3,0.61824858]
[1641203266947,12.49871505,3802.8,3802.3,0.74640558]
[1641203267145,12.49871505,3802.8,3802.3,0.128157]
[1641203267346,12.49871505,3802.8,3802.4,0.61821099]
[1641203267549,12.49871505,3802.8,3802.3,0.74636799]
[1641203267747,0.52032516,3802.7,3802.4,0.55910341]
[1641203268146,0.52032516,3802.7,3802.4,1.17727196]
[1641203268550,0.52032516,3802.7,3802.4,0.55910341]
[1641203268949,11.31,3802.8,3802.5,0.55910341]
[1641203269146,0.229991,3802.7,3802.5,0.55910341]
[1641203269847,0.229991,3802.7,3802.4,0.55910341]
[1641203270549,0.229991,3802.7,3802.3,0.55910341]
[1641203271052,0.229991,3802.7,3802.4,0.61808013]
[1641203271452,11.31,3802.8,3802.4,0.61808013]
[1641203271653,11.31,3802.8,3802.3,0.68726041]
[1641203272055,0.51904997,3802.7,3802.5,0.55910341]
[1641203272253,0.74904097,3802.7,3802.5,0.55910341]
[1641203272454,0.51904997,3802.7,3802.5,0.55910341]
[1641203273056,0.74904097,3802.7,3802.5,0.55910341]
[1641203273558,0.51904997,3802.7,3802.5,0.55910341]
[1641203273961,0.229991,3802.6,3802.5,0.55910341]
[1641203274159,0.229991,3802.6,3802.4,0.55910341]
[1641203274561,0.128157,3802.9,3802.4,0.55910341]
[1641203274761,3.19350505,3803.0,3802.4,0.55910341]
[1641203274961,3.19350505,3803.0,3802.3,0.55910341]
[1641203275363,3.19350505,3803.0,3802.4,0.6179286]
[1641203275564,0.74545342,3803.4,3802.6,5.25945009]
[1641203275763,1.78326409,3803.5,3802.7,1.31397929]
[1641203275966,0.74156052,3803.4,3803.2,4.06903333]
[1641203276163,1.78326409,3803.7,3803.3,1.622356]
[1641203276363,1.78326409,3803.7,3803.3,2.93607291]
[1641203276563,1.78326409,3803.7,3803.4,0.128157]
[1641203276763,1.78326409,3803.7,3803.6,4.00958]
[1641203277363,3.71513352,3804.6,3803.6,4.00958]
[1641203277364,1.78326409,3804.6,3803.6,4.00958]
[1641203277766,11.31,3804.5,3803.6,4.00958]
[1641203277965,0.128157,3804.4,3803.6,4.00958]
[1641203278767,0.128157,3804.4,3804.2,2.00479]
[1641203279066,0.229991,3804.3,3804.2,2.00479]
[1641203279267,0.66983811,3804.3,3804.2,2.00479]
[1641203279466,0.43984711,3804.3,3804.2,2.00479]
[1641203279865,0.66983811,3804.3,3804.2,2.00479]
[1641203280270,0.43984711,3804.3,3804.2,2.00479]
[1641203281470,0.66983811,3804.3,3804.2,2.00479]
[1641203281668,0.43984711,3804.3,3804.2,2.00479]
[1641203285076,0.66983811,3804.3,3804.2,2.00479]
[1641203286077,0.128157,3804.6,3804.2,2.00479]
[1641203286078,0.43984711,3804.5,3804.2,2.00479]
[1641203286378,2.65668489,3804.8,3804.2,2.132947]
[1641203286778,2.65668489,3804.8,3804.6,2.00479]
[1641203287178,0.229991,3804.7,3804.6,2.00479]
[1641203288881,1.31786216,3804.8,3804.6,2.00479]
[1641203289283,0.229991,3804.7,3804.6,2.00479]
[1641203290786,0.229991,3804.7,3804.6,1e-08]
[1641203290985,12.72969616,3804.7,3804.2,0.8809717]
[1641203291184,12.72969616,3804.7,3803.9,1.17472813]
[1641203291585,1.18970516,3804.5,3803.7,1.17472813]
[1641203291785,1.5,3804.4,3803.1,2.52524061]
[1641203292084,1.5,3804.3,3803.1,2.52524061]
[1641203292687,1.5,3804.3,3803.1,0.74558334]
[1641203292886,2.00479,3803.3,3803.1,0.74558334]
[1641203293088,2.132947,3803.3,3803.1,0.74558334]
[1641203293288,2.132947,3803.3,3802.9,1.02225024]
[1641203294389,2.00479,3803.3,3802.9,2.33617083]
[1641203295290,0.128157,3803.2,3802.9,1.31392059]
[1641203297595,0.229991,3803.1,3802.5,0.79726297]
[1641203297993,0.229991,3803.1,3802.4,4.78888812]
[1641203299198,0.229991,3803.1,3802.0,3.47478968]
[1641203300202,0.229991,3803.1,3802.0,2.00479]
[1641203301001,2.00479,3802.6,3802.0,2.00479]
[1641203306513,2.00479,3802.6,3802.1,0.55911224]
[1641203308921,2.00479,3802.6,3802.2,0.61652524]
[1641203310821,2.00479,3802.6,3802.2,1.93066167]
[1641203311022,0.128157,3803.2,3802.3,0.55911224]
[1641203311224,0.128157,3803.2,3802.3,1.12431224]
[1641203311525,0.128157,3803.2,3802.3,1.74083748]
[1641203311925,0.128157,3803.2,3802.3,1.12431224]
[1641203312124,0.128157,3803.2,3802.5,0.88321861]
[1641203312823,0.128157,3803.2,3802.6,0.61656949]
[1641203313023,0.128157,3803.2,3802.5,0.88321861]
[1641203313223,0.128157,3803.2,3802.6,0.88321861]
[1641203315428,0.128157,3803.2,3802.6,1.44233085]
[1641203315926,0.128157,3803.2,3802.7,0.61662746]
[1641203316526,0.128157,3803.2,3802.8,0.88321861]
[1641203317527,0.128157,3803.2,3802.8,1.44233085]
[1641203318628,0.128157,3803.2,3802.8,0.88321861]
[1641203319930,0.128157,3803.2,3802.9,0.61678975]
[1641203320130,2.00479,3803.3,3802.9,0.61678975]
[1641203320733,2.00479,3803.3,3803.0,0.88321861]
[1641203322633,0.229991,3803.2,3803.0,0.88321861]
[1641203322834,2.00479,3803.3,3803.0,0.88321861]
[1641203323536,2.00479,3803.3,3803.1,0.88321861]
[1641203323836,20.4775,3803.5,3803.1,0.88321861]
[1641203324036,0.88999413,3803.6,3803.1,0.88321861]
[1641203324238,0.88999413,3803.7,3803.1,0.88321861]
[1641203324439,1.01815113,3803.7,3803.1,0.88321861]
[1641203325241,2.00479,3803.4,3803.3,0.88321861]
[1641203325441,2.234781,3803.4,3803.3,0.88321861]
[1641203326142,2.234781,3803.4,3803.2,0.88321861]
[1641203327945,2.00479,3803.4,3803.2,0.88321861]
[1641203328545,2.234781,3803.4,3803.2,0.88321861]
[1641203330347,2.00479,3803.4,3803.2,0.88321861]
[1641203330748,0.229991,3803.3,3803.2,0.88321861]
[1641203330949,2.00479,3803.4,3803.2,0.88321861]
[1641203331749,0.229991,3803.3,3803.2,0.88321861]
[1641203332151,0.229991,3803.3,3803.2,1.50017205]
[1641203332351,2.00479,3803.4,3803.2,0.88321861]
[1641203332550,2.00479,3803.4,3803.1,1.50017205]
[1641203332750,2.00479,3803.4,3803.1,0.88321861]
[1641203333052,2.00479,3803.4,3803.2,2.05924466]
[1641203333452,0.229991,3803.3,3803.2,2.05924466]
[1641203333653,0.229991,3803.3,3803.2,1.44233085]
[1641203333852,0.229991,3803.3,3803.2,1.5002477]
[1641203334553,0.229991,3803.3,3803.2,0.88321861]
[1641203334757,0.229991,3803.3,3803.1,0.88321861]
[1641203335156,2.00479,3803.4,3803.1,0.88321861]
[1641203335555,2.00479,3803.4,3803.2,0.61700333]
[1641203335755,2.234781,3803.4,3803.2,0.61700333]
[1641203335956,2.234781,3803.4,3802.8,2.49118398]
[1641203335957,3.12477513,3803.4,3803.1,1.17723404]
[1641203336155,2.89478413,3803.4,3803.1,1.17723404]
[1641203337260,0.229991,3803.3,3803.1,1.17723404]
[1641203337458,2.89478413,3803.4,3803.1,1.17723404]
[1641203339164,0.229991,3803.3,3803.1,1.17723404]
[1641203339965,1.062791,3803.3,3803.1,1.17723404]
[1641203340767,1.062791,3803.3,3803.2,1.17723404]
[1641203341168,1.062791,3803.3,3802.9,2.02904989]
[1641203341369,11.31,3802.9,3802.1,2.94679212]
[1641203341570,0.128157,3802.8,3802.6,1.47476353]
[1641203341769,0.358148,3802.8,3802.6,1.47476353]
[1641203342370,0.358148,3802.8,3801.8,2.94679212]
[1641203342569,0.89324519,3802.7,3801.8,2.94679212]
[1641203342770,0.89324519,3802.7,3801.7,4.46645875]
[1641203343171,0.89324519,3802.7,3802.1,0.61157094]
[1641203343370,2.00479,3802.6,3802.1,0.61157094]
[1641203344573,13.31479,3802.6,3802.1,0.61157094]
[1641203344771,1.5,3802.5,3801.7,0.74545788]
[1641203344973,11.31,3802.4,3801.7,0.74545788]
[1641203345371,2.00479,3802.0,3801.7,0.74545788]
[1641203345571,0.229991,3801.9,3801.7,0.74545788]
[1641203345772,0.358148,3801.9,3801.7,0.74545788]
[1641203346873,0.358148,3801.9,3800.8,4.06488877]
[1641203348275,0.358148,3801.9,3800.9,0.122356]
[1641203348877,0.358148,3801.9,3801.4,2.00479]
[1641203349777,0.128157,3801.9,3801.4,2.132947]
[1641203349979,0.128157,3801.9,3801.4,2.00479]
[1641203350679,0.89324519,3802.7,3801.8,1.31425214]
[1641203350882,2.97500321,3804.2,3802.3,1.5]
[1641203351080,2.97500321,3804.2,3802.8,1.5]
[1641203351278,2.97500321,3804.2,3803.3,1.31378595]
[1641203351484,2.00479,3803.8,3803.0,1.5]
[1641203351678,2.00479,3803.8,3803.4,1.31372036]
[1641203352082,1.68081762,3803.6,3803.4,1.31372036]
[1641203352582,2.00479,3803.8,3803.4,1.31372036]
[1641203356390,2.00479,3804.1,3803.4,1.31372036]
[1641203356590,2.68679511,3804.9,3803.6,1.60445595]
[1641203356792,2.68679511,3804.9,3803.7,0.122356]
[1641203356991,2.68679511,3804.9,3803.7,4.328178]
[1641203357192,1.18679511,3804.9,3803.7,4.328178]
[1641203357395,1.18679511,3804.9,3803.7,4.205822]
[1641203357692,2.00479,3804.8,3803.9,2.00479]
[1641203357895,0.128157,3804.7,3803.9,2.00479]
[1641203358094,0.128157,3804.7,3804.0,4.205656]
[1641203360498,0.128157,3804.7,3804.1,0.128157]
[1641203360697,2.00479,3804.8,3804.1,0.128157]
[1641203360897,0.128157,3804.7,3804.2,4.205656]
[1641203363901,0.128157,3804.7,3803.9,2.00479]
[1641203364402,11.438157,3804.7,3803.9,2.00479]
[1641203365003,0.128157,3804.7,3803.9,2.00479]
[1641203379428,0.128157,3804.7,3804.0,0.128157]
[1641203382532,1.18679511,3806.1,3804.6,1.31316832]
[1641203382732,1.18679511,3806.1,3805.0,1.5]
[1641203382933,0.128157,3805.8,3805.0,0.7085]
[1641203383136,0.128157,3805.8,3805.1,5.832653]
[1641203383435,0.127157,3805.8,3805.1,4.204496]
[1641203384035,0.127157,3805.8,3805.3,2.00479]
[1641203386338,2.131947,3805.8,3805.0,2.00479]
[1641203387539,2.131947,3805.8,3805.1,0.128157]
[1641203388640,2.131947,3805.8,3805.0,2.00479]
[1641203390841,2.131947,3805.8,3804.7,1.31330284]
[1641203391043,11.31,3805.7,3804.7,1.31330284]
[1641203392244,2.00479,3805.4,3804.7,1.31330284]
[1641203392445,2.61799,3805.4,3804.8,0.128157]
[1641203394945,2.61799,3805.4,3804.7,1.31330284]
[1641203395549,2.61799,3805.4,3804.6,2.00479]
[1641203395550,11.432356,3805.3,3804.6,2.00479]
[1641203396553,11.31,3805.3,3804.6,2.00479]
[1641203400058,1.5,3805.1,3804.6,2.00479]
[1641203400259,0.127158,3805.0,3804.6,2.00479]
[1641203402963,1.5,3804.8,3803.8,3.6908125]
[1641203403164,0.122356,3804.7,3803.7,1.3136289]
[1641203403561,0.122356,3804.7,3803.6,22.856]
[1641203404367,2.00479,3804.3,3803.6,22.856]
[1641203404563,2.00479,3804.3,3803.4,2.127146]
[1641203404564,2.00479,3804.3,3803.7,0.128157]
[1641203406366,2.00479,3804.3,3803.7,1.00848137]
[1641203407167,2.00479,3804.3,3803.8,1.43932737]
[1641203408068,2.00479,3804.3,3804.0,0.88032437]
[1641203408268,0.229991,3804.2,3804.0,0.88032437]
[1641203409970,2.00479,3804.3,3804.0,0.88032437]
[1641203410871,0.229991,3804.2,3804.0,0.88032437]
[1641203411069,0.357149,3804.2,3804.0,0.88032437]
[1641203411470,0.229991,3804.2,3804.0,0.88032437]
[1641203411669,2.00479,3804.3,3804.0,0.88032437]
[1641203411871,0.229991,3804.2,3804.0,0.88032437]
[1641203412974,0.229991,3804.2,3803.8,0.88032437]
[1641203413176,0.357149,3804.2,3803.8,0.88032437]
[1641203413877,2.00479,3804.3,3803.8,0.88032437]
[1641203414680,2.00479,3804.3,3803.8,1.41842437]
[1641203414877,2.00479,3804.3,3803.9,0.63914975]
[1641203415178,0.127158,3804.2,3803.9,0.63914975]
[1641203415578,2.00479,3804.3,3803.8,0.88032437]
[1641203416781,0.88991281,3804.6,3803.8,0.88032437]
[1641203416979,0.88991281,3804.6,3803.8,1.64942437]
[1641203417182,0.88991281,3804.6,3803.9,0.63926014]